fUSD/lending_fUSD_20250828
["ID","MTS","AMOUNT","RATE_DAILY","PERIOD"]
[381772332,1756341047073,-400.0,0.0001782,2]
[381772333,1756341047083,-400.0,0.00017823,2]
[381772334,1756341047092,-665.35,0.00017823,2]
[381772335,1756341047101,-404.4,0.00017823,2]
[381772336,1756341047111,-400.0,0.00017823,2]
[381772337,1756341047120,-400.0,0.00017823,2]
[381772338,1756341047129,-400.0,0.00017823,2]
[381772339,1756341047138,-528.56,0.00017823,2]
[381772340,1756341047148,-400.0,0.00017823,2]
[381772341,1756341047157,-400.0,0.00017823,2]
[381772342,1756341047166,-2166.58,0.00017823,2]
[381772343,1756341047175,-400.0,0.00017823,2]
[381772344,1756341047185,-400.0,0.00017823,2]
[381772345,1756341047194,-400.0,0.00017823,2]
[381772346,1756341047203,-660.87,0.00017823,2]
[381772347,1756341047217,-500.0,0.00017831,2]
[381772348,1756341047226,-150.0,0.00017831,2]
[381772349,1756341047236,-825.0,0.00017831,2]
[381772350,1756341047245,-150.0,0.00017831,2]
[381772351,1756341047255,-500.0,0.00017831,2]
[381772352,1756341047265,-500.0,0.00017831,2]
[381772353,1756341047274,-250.0,0.00017831,2]
[381772354,1756341047284,-150.0,0.00017831,2]
[381772355,1756341047293,-500.0,0.00017831,2]
[381772356,1756341047610,-400.0,0.00017846,2]
[381772357,1756341047620,-400.0,0.00017846,2]
[381772358,1756341047629,-400.0,0.00017846,2]
[381772359,1756341047638,-179.29695397,0.00017846,2]
[381772360,1756341047648,-400.0,0.00017846,2]
[381772361,1756341047658,-400.0,0.00017846,2]
[381772362,1756341047667,-400.0,0.00017846,2]
[381772363,1756341047676,-166.08,0.00017852,2]
[381772364,1756341047689,-408.59,0.00017852,2]
[381772365,1756341047699,-1272.48531021,0.00017872,2]
[381772366,1756341047709,-500.0,0.00017873,2]
[381772367,1756341047718,-1700.0,0.000179,6]
[381772368,1756341047727,-974.85659746,0.000179,2]
[381772369,1756341047736,-5314.91561287,0.00017909,2]
[381772370,1756341047746,-157.15315854,0.00017926,2]
[381772371,1756341047756,-2112.75989,0.0001793,2]
[381772372,1756341047767,-1000.0,0.00017947,3]
[381772373,1756341047776,-150.0,0.00017958,2]
[381772374,1756341047785,-1180.8662547,0.00017958,2]
[381772375,1756341047795,-2998.5,0.00017958,2]
[381772376,1756341047804,-3107.1379501,0.00017972,2]
[381772377,1756341047813,-500.0,0.00017973,2]
[381772378,1756341047824,-500.0,0.00017973,2]
[381772379,1756341047834,-500.0,0.00017973,2]
[381772380,1756341047844,-500.0,0.00017973,2]
[381772381,1756341047853,-501.22305328,0.00017973,2]
[381772382,1756341047863,-500.0,0.00017973,2]
[381772383,1756341047874,-500.0,0.00017973,2]
[381772384,1756341047885,-500.0,0.00017973,2]
[381772385,1756341047895,-500.0,0.00017973,2]
[381772386,1756341047905,-500.0,0.00017973,2]
[381772387,1756341047916,-500.0,0.00017973,2]
[381772388,1756341047926,-500.0,0.00017973,2]
[381772389,1756341047935,-500.0,0.00017973,2]
[381772390,1756341047945,-500.0,0.00017973,2]
[381772391,1756341047955,-1332.7818467,0.00017987,2]
[381772392,1756341047965,-400.0,0.00017989,2]
[381772393,1756341047976,-400.0,0.00017989,2]
[381772394,1756341047987,-400.0,0.00017989,2]
[381772395,1756341047998,-166.68,0.00017989,2]
[381772396,1756341048012,-262.85,0.00017989,2]
[381772397,1756341048024,-400.0,0.00017989,2]
[381772398,1756341048034,-400.0,0.00017989,2]
[381772399,1756341048046,-400.0,0.00017989,2]
[381772400,1756341048064,-400.0,0.00017989,2]
[381772401,1756341048075,-400.0,0.00017989,2]
[381772402,1756341048086,-400.0,0.00017989,2]
[381772403,1756341048095,-400.0,0.00017989,2]
[381772404,1756341048105,-400.0,0.00017989,2]
[381772405,1756341048115,-400.0,0.00017989,2]
[381772406,1756341048125,-400.0,0.00017989,2]
[381772407,1756341048135,-400.0,0.00017989,2]
[381772408,1756341048144,-400.0,0.00017989,2]
[381772409,1756341048155,-400.0,0.00017989,2]
[381772410,1756341048164,-400.0,0.00017989,2]
[381772411,1756341048174,-400.0,0.00017989,2]
[381772412,1756341048185,-400.0,0.00017989,2]
[381772413,1756341048194,-400.0,0.00017989,2]
[381772414,1756341048204,-382.38,0.00017989,2]
[381772415,1756341048217,-400.0,0.00017989,2]
[381772416,1756341048227,-400.0,0.00017989,2]
[381772417,1756341048237,-400.0,0.00017989,2]
[381772418,1756341048246,-400.0,0.00017989,2]
[381772419,1756341048257,-400.0,0.00017989,2]
[381772420,1756341048267,-399.42,0.00017989,2]
[381772421,1756341048277,-400.0,0.00017989,2]
[381772422,1756341048287,-400.0,0.00017989,2]
[381772423,1756341048297,-400.0,0.00017989,2]
[381772424,1756341048308,-400.0,0.00017989,2]
[381772425,1756341048318,-400.0,0.00017989,2]
[381772426,1756341048328,-400.0,0.00017989,2]
[381772427,1756341048337,-400.0,0.00017989,2]
[381772428,1756341048347,-400.0,0.00017989,2]
[381772429,1756341048357,-400.0,0.00017989,2]
[381772430,1756341048366,-400.0,0.00017989,2]
[381772431,1756341048376,-400.0,0.00017989,2]
[381772432,1756341048386,-400.0,0.00017989,2]
[381772433,1756341048396,-400.0,0.00017989,2]
[381772434,1756341048405,-432.11,0.00017989,2]
[381772435,1756341048415,-400.0,0.00017989,2]
[381772436,1756341048425,-400.0,0.00017989,2]
[381772437,1756341048434,-400.0,0.00017989,2]
[381772438,1756341048444,-400.0,0.00017989,2]
[381772439,1756341048454,-325.30497924,0.00017989,2]
[381772440,1756341048463,-405.63,0.00017989,2]
[381772441,1756341048473,-400.0,0.00017989,2]
[381772442,1756341048482,-400.0,0.00017989,2]
[381772443,1756341048492,-213.3,0.00017989,2]
[381772444,1756341048501,-400.0,0.00017989,2]
[381772445,1756341048511,-400.0,0.00017989,2]
[381772446,1756341048521,-400.0,0.00017989,2]
[381772447,1756341048530,-400.0,0.00017989,2]
[381772448,1756341048540,-400.0,0.00017989,2]
[381772449,1756341048549,-400.0,0.00017989,2]
[381772450,1756341048559,-400.0,0.00017989,2]
[381772451,1756341048569,-400.0,0.00017989,2]
[381772452,1756341048579,-400.0,0.00017989,2]
[381772453,1756341048589,-400.0,0.00017989,2]
[381772454,1756341048599,-274.13507017,0.00017989,2]
[381772455,1756341048608,-400.0,0.00017989,2]
[381772456,1756341048618,-400.0,0.00017989,2]
[381772457,1756341048627,-400.0,0.00017989,2]
[381772458,1756341048637,-443.47,0.00017989,2]
[381772459,1756341048646,-400.0,0.00017989,2]
[381772460,1756341048656,-435.66,0.00017989,2]
[381772461,1756341048666,-400.0,0.00017989,2]
[381772462,1756341048675,-400.0,0.00017989,2]
[381772463,1756341048684,-400.0,0.00017989,2]
[381772464,1756341048694,-400.0,0.00017989,2]
[381772465,1756341048703,-485.84,0.00017989,2]
[381772466,1756341048712,-400.0,0.00017989,2]
[381772467,1756341048722,-649.53,0.00017989,2]
[381772468,1756341048731,-400.0,0.00017989,2]
[381772469,1756341048740,-400.0,0.00017989,2]
[381772470,1756341048749,-400.0,0.00017989,2]
[381772471,1756341048758,-300.23,0.00017989,2]
[381772472,1756341048768,-400.0,0.00017989,2]
[381772473,1756341048777,-431.58,0.00017989,2]
[381772474,1756341048786,-400.0,0.00017989,2]
[381772475,1756341048796,-400.0,0.00017989,2]
[381772476,1756341048806,-400.0,0.00017989,2]
[381772477,1756341048815,-400.0,0.00017989,2]
[381772478,1756341048825,-400.0,0.00017989,2]
[381772479,1756341048834,-400.0,0.00017989,2]
[381772480,1756341048843,-400.0,0.00017989,2]
[381772481,1756341048852,-400.0,0.00017989,2]
[381772482,1756341048862,-433.01,0.00017989,2]
[381772483,1756341048871,-400.0,0.00017989,2]
[381772484,1756341048881,-400.0,0.00017989,2]
[381772485,1756341048890,-400.0,0.00017989,2]
[381772486,1756341048900,-459.96037424,0.00017989,2]
[381772487,1756341048909,-400.0,0.00017989,2]
[381772488,1756341048919,-429.84,0.00017989,2]
[381772489,1756341048929,-400.0,0.00017989,2]
[381772490,1756341048939,-400.0,0.00017989,2]
[381772491,1756341048948,-400.0,0.00017989,2]
[381772492,1756341048958,-468.33224424,0.00017989,2]
[381772493,1756341048967,-400.0,0.00017989,2]
[381772494,1756341048977,-573.87,0.00017989,2]
[381772495,1756341048986,-400.0,0.00017989,2]
[381772496,1756341048996,-499.73741932,0.00017989,2]
[381772497,1756341049006,-400.0,0.00017989,2]
[381772498,1756341049015,-400.0,0.00017989,2]
[381772499,1756341049024,-400.0,0.00017989,2]
[381772500,1756341049033,-400.0,0.00017989,2]
[381772501,1756341049043,-400.0,0.00017989,2]
[381772502,1756341049052,-400.0,0.00017989,2]
[381772503,1756341049062,-400.0,0.00017989,2]
[381772504,1756341049071,-400.0,0.00017989,2]
[381772505,1756341049081,-303.5,0.00017989,2]
[381772506,1756341049090,-400.0,0.00017989,2]
[381772507,1756341049100,-400.0,0.00017989,2]
[381772508,1756341049111,-400.0,0.00017989,2]
[381772509,1756341049122,-183.69,0.00017989,2]
[381772510,1756341049133,-400.0,0.00017989,2]
[381772511,1756341049145,-400.0,0.00017989,2]
[381772512,1756341049155,-400.0,0.00017989,2]
[381772513,1756341049164,-400.0,0.00017989,2]
[381772514,1756341049175,-386.26,0.00017989,2]
[381772515,1756341049185,-400.0,0.00017989,2]
[381772516,1756341049194,-431.09,0.00017989,2]
[381772517,1756341049205,-400.0,0.00017989,2]
[381772518,1756341049219,-469.09,0.00017989,2]
[381772519,1756341049229,-400.0,0.00017989,2]
[381772520,1756341049239,-400.0,0.00017989,2]
[381772521,1756341049249,-284.44,0.00017989,2]
[381772522,1756341049259,-400.0,0.00017989,2]
[381772523,1756341049269,-400.0,0.00017989,2]
[381772524,1756341049278,-400.0,0.00017989,2]
[381772525,1756341049288,-400.0,0.00017989,2]
[381772526,1756341049299,-200.0,0.00017989,2]
[381772527,1756341049308,-400.0,0.00017989,2]
[381772528,1756341049318,-400.0,0.00017989,2]
[381772529,1756341049327,-400.0,0.00017989,2]
[381772530,1756341049337,-400.0,0.00017989,2]
[381772531,1756341049347,-400.0,0.00017989,2]
[381772532,1756341049356,-400.0,0.00017989,2]
[381772533,1756341049366,-473.22,0.00017989,2]
[381772534,1756341049376,-400.0,0.00017989,2]
[381772535,1756341049385,-400.0,0.00017989,2]
[381772536,1756341049395,-400.0,0.00017989,2]
[381772537,1756341049404,-243.16957709,0.00017989,2]
[381772538,1756341049414,-400.0,0.00017989,2]
[381772539,1756341049423,-400.0,0.00017989,2]
[381772540,1756341049433,-400.0,0.00017989,2]
[381772541,1756341049443,-400.0,0.00017989,2]
[381772542,1756341049452,-453.84,0.00017989,2]
[381772543,1756341049461,-400.0,0.00017989,2]
[381772544,1756341049471,-400.0,0.00017989,2]
[381772545,1756341049480,-400.0,0.00017989,2]
[381772546,1756341049490,-400.0,0.00017989,2]
[381772547,1756341049500,-400.0,0.00017989,2]
[381772548,1756341049509,-400.0,0.00017989,2]
[381772549,1756341049519,-400.0,0.00017989,2]
[381772550,1756341049528,-400.0,0.00017989,2]
[381772551,1756341049537,-400.0,0.00017989,2]
[381772552,1756341049547,-400.0,0.00017989,2]
[381772553,1756341049556,-400.0,0.00017989,2]
[381772554,1756341049565,-400.0,0.00017989,2]
[381772555,1756341049575,-400.0,0.00017989,2]
[381772556,1756341049584,-400.0,0.00017989,2]
[381772557,1756341049599,-661.45,0.00017989,2]
[381772558,1756341049608,-400.0,0.00017989,2]
[381772559,1756341049618,-400.0,0.00017989,2]
[381772560,1756341049627,-400.0,0.00017989,2]
[381772561,1756341049637,-400.0,0.00017989,2]
[381772562,1756341049647,-400.0,0.00017989,2]
[381772563,1756341049656,-400.0,0.00017989,2]
[381772564,1756341049665,-400.0,0.00017989,2]
[381772565,1756341049675,-400.0,0.00017989,2]
[381772566,1756341049685,-400.0,0.00017989,2]
[381772567,1756341049694,-400.0,0.00017989,2]
[381772568,1756341049703,-400.0,0.00017989,2]
[381772569,1756341049716,-400.0,0.00017989,2]
[381772570,1756341049726,-400.0,0.00017989,2]
[381772571,1756341049735,-400.0,0.00017989,2]
[381772572,1756341049744,-400.0,0.00017989,2]
[381772573,1756341049754,-400.0,0.00017989,2]
[381772574,1756341049763,-400.0,0.00017989,2]
[381772575,1756341049774,-400.0,0.00017989,2]
[381772576,1756341049784,-400.0,0.00017989,2]
[381772577,1756341049794,-400.0,0.00017989,2]
[381772578,1756341049804,-400.0,0.00017989,2]
[381772579,1756341049814,-400.0,0.00017989,2]
[381772580,1756341049823,-400.0,0.00017989,2]
[381772581,1756341049835,-400.0,0.00017989,2]
[381772582,1756341049845,-345.27,0.00017989,2]
[381772583,1756341049855,-545.2,0.00017989,2]
[381772584,1756341049864,-400.0,0.00017989,2]
[381772585,1756341049876,-400.0,0.00017989,2]
[381772586,1756341049886,-400.0,0.00017989,2]
[381772587,1756341049895,-400.0,0.00017989,2]
[381772588,1756341049905,-400.0,0.00017989,2]
[381772589,1756341049915,-400.0,0.00017989,2]
[381772590,1756341049926,-231.57784143,0.00017989,2]
[381772591,1756341049936,-400.0,0.00017989,2]
[381772592,1756341049946,-491.45,0.00017989,2]
[381772593,1756341049958,-300.0,0.00017989,2]
[381772594,1756341049970,-400.0,0.00017989,2]
[381772595,1756341049981,-400.0,0.00017989,2]
[381772596,1756341050054,-400.0,0.00017989,2]
[381772597,1756341050063,-400.0,0.00017989,2]
[381772598,1756341050073,-400.0,0.00017989,2]
[381772599,1756341050083,-400.0,0.00017989,2]
[381772600,1756341050093,-400.0,0.00017989,2]
[381772601,1756341050103,-400.0,0.00017989,2]
[381772602,1756341050113,-400.0,0.00017989,2]
[381772603,1756341050123,-400.0,0.00017989,2]
[381772604,1756341050132,-400.0,0.00017989,2]
[381772605,1756341050142,-400.0,0.00017989,2]
[381772606,1756341050153,-543.85746943,0.00017989,2]
[381772607,1756341050162,-400.0,0.00017989,2]
[381772608,1756341050171,-400.0,0.00017989,2]
[381772609,1756341050180,-400.0,0.00017989,2]
[381772610,1756341050188,-400.0,0.00017989,2]
[381772611,1756341050197,-316.95732304,0.0001799,2]
[381772612,1756341050209,-152.0,0.00017994,3]
[381772613,1756341050219,-666.0,0.00017999,2]
[381772614,1756341050229,-1230.98,0.00017999,2]
[381772615,1756341050238,-400.0,0.00017999,2]
[381772616,1756341050247,-207.262334,0.00017999,2]
[381772617,1756341050257,-400.0,0.00017999,2]
[381772618,1756341050267,-707.8,0.00017999,2]
[381772619,1756341050276,-327.310556,0.00017999,2]
[381772620,1756341050285,-491.539566,0.00017999,2]
[381772621,1756341050295,-400.0,0.00017999,2]
[381772622,1756341050304,-400.0,0.00017999,2]
[381772623,1756341050314,-400.0,0.00017999,2]
[381772624,1756341050323,-1596.44,0.00017999,2]
[381772625,1756341050332,-400.0,0.00017999,2]
[381772626,1756341050342,-522.49,0.00017999,2]
[381772627,1756341050352,-160.972422,0.00017999,2]
[381772628,1756341050364,-400.0,0.00017999,2]
[381772629,1756341050374,-410.07,0.00017999,2]
[381772630,1756341050393,-677.06,0.00017999,2]
[381772631,1756341050402,-400.0,0.00017999,2]
[381772632,1756341050411,-400.0,0.00017999,2]
[381772633,1756341050420,-473.17,0.00017999,2]
[381772634,1756341050430,-726.04,0.00017999,2]
[381772635,1756341050439,-400.0,0.00017999,2]
[381772636,1756341050450,-636.44,0.00017999,2]
[381772637,1756341050459,-400.0,0.00017999,2]
[381772638,1756341050468,-622.62,0.00017999,2]
[381772639,1756341050478,-400.0,0.00017999,2]
[381772640,1756341050487,-300.0,0.00017999,2]
[381772641,1756341050496,-400.0,0.00017999,2]
[381772642,1756341050505,-734.38,0.00017999,2]
[381772643,1756341050514,-428.34,0.00017999,2]
[381772644,1756341050523,-400.0,0.00017999,2]
[381772645,1756341050532,-3486.0,0.00018,2]
[381772646,1756341050542,-80884.38016587,0.00018,2]
[381772647,1756341051014,-153.0,0.00017723,2]
[381772648,1756341051024,-3375.0,0.00017741,2]
[381772649,1756341051034,-1214.05090909,0.00018,2]
[381772650,1756341051138,-23586.56614553,0.00018,2]
[381772651,1756341051148,-3753.46174276,0.00018,7]
[381772652,1756341051157,-500.0,0.00018,2]
[381772653,1756341051167,-500.0,0.00018,2]
[381772654,1756341051176,-644.93186427,0.00018,2]
[381772655,1756341051185,-1534.98,0.00018,2]
[381772656,1756341051195,-279.99997379,0.00018,2]
[381772657,1756341051204,-24160.4148249,0.00018,2]
[381772658,1756341051223,-153.0,0.00017723,2]
[381772659,1756341051233,-132.06559965,0.00018,2]
[381772660,1756341051740,-554.46148577,0.0001745,2]
[381772661,1756341051749,-153.0,0.00017723,2]
[381772662,1756341051758,-153.0,0.00017723,2]
[381772663,1756341051767,-153.0,0.00017723,2]
[381772664,1756341051776,-153.0,0.00017723,2]
[381772665,1756341051785,-153.0,0.00017723,2]
[381772666,1756341051795,-153.0,0.00017723,2]
[381772667,1756341051804,-153.0,0.00017723,2]
[381772668,1756341051813,-153.0,0.00017723,2]
[381772669,1756341051822,-153.0,0.00017723,2]
[381772670,1756341051832,-3518.75162423,0.00018,2]
[381772671,1756341051852,-400.0,0.00017741,2]
[381772672,1756341051861,-532.89566909,0.00018,2]
[381772673,1756341051876,-800.0,0.00018,2]
[381772674,1756341051888,-676.61066417,0.00018,2]
[381772678,1756341210730,150.0,0.00028369,120]
[381772679,1756341330518,150.0,0.00029782,120]
[381772681,1756341350050,200.0,0.0003013,120]
[381772682,1756341365863,-1524.0,0.0001585,2]
[381772683,1756341370519,-165.39,0.00013699,2]
[381772685,1756341390782,150.0,0.00029031,120]
[381772691,1756341889374,-227.0,0.00016,2]
[381772693,1756341937366,159.0,0.00030137,120]
[381772707,1756342231852,-157.02,0.00016253,2]
[381772708,1756342231862,-1000.0,0.00016395,3]
[381772709,1756342231871,-771.6356657,0.00016537,2]
[381772710,1756342231910,-228.3643343,0.00016537,2]
[381772711,1756342231919,-43.62071125,0.00016672,2]
[381772712,1756342231975,-256.37928875,0.00016672,2]
[381772713,1756342231985,-1200.0,0.00016672,2]
[381772714,1756342231994,-500.0,0.00016673,2]
[381772715,1756342232004,-500.0,0.00016673,2]
[381772716,1756342232014,-500.0,0.00016673,2]
[381772717,1756342232023,-500.0,0.00016673,2]
[381772718,1756342232032,-501.26346813,0.00016673,2]
[381772719,1756342232042,-500.0,0.00016673,2]
[381772720,1756342232051,-500.0,0.00016673,2]
[381772721,1756342232060,-500.0,0.00016673,2]
[381772722,1756342232070,-500.0,0.00016673,2]
[381772723,1756342232079,-550.62540039,0.00016682,2]
[381772724,1756342232092,-166.71235386,0.00016682,2]
[381772725,1756342232101,-217.96446034,0.00016682,2]
[381772726,1756342232112,-5837.18744533,0.00016682,2]
[381772727,1756342232122,-151.0,0.00016687,2]
[381772728,1756342232131,-149.57860312,0.00016687,2]
[381772729,1756342232143,-50.42139688,0.00016687,2]
[381772730,1756342232153,-500.0,0.00016687,2]
[381772731,1756342232162,-282.98,0.00016687,2]
[381772732,1756342232171,-387.6068406,0.00016695,2]
[381772733,1756342232180,-42.9723898,0.00016695,2]
[381772734,1756342232204,-107.0276102,0.00016695,2]
[381772735,1756342232214,-237.86975467,0.00016696,2]
[381772736,1756342232236,-762.13024533,0.00016696,2]
[381772738,1756342232246,-400.0,0.00016696,2]
[381772740,1756342232255,-262.89380027,0.00016696,2]
[381772744,1756342232266,-137.10619973,0.00016696,2]
[381772747,1756342232276,-400.0,0.00016696,2]
[381772750,1756342232284,-400.0,0.00016696,2]
[381772753,1756342232293,-400.0,0.00016696,2]
[381772755,1756342232302,-400.0,0.00016696,2]
[381772758,1756342232311,-400.0,0.00016696,2]
[381772761,1756342232320,-246.47580037,0.00016696,2]
[381772763,1756342232331,-153.52419963,0.00016696,2]
[381772765,1756342232342,-400.0,0.00016696,2]
[381772767,1756342232352,-400.0,0.00016696,2]
[381772769,1756342232361,-262.85,0.00016696,2]
[381772771,1756342232370,-400.0,0.00016696,2]
[381772773,1756342232379,-400.0,0.00016696,2]
[381772775,1756342232388,-166.68,0.00016696,2]
[381772776,1756342232397,-400.0,0.00016696,2]
[381772777,1756342232406,-400.0,0.00016696,2]
[381772778,1756342232415,-400.0,0.00016696,2]
[381772779,1756342232424,-400.0,0.00016696,2]
[381772780,1756342232434,-400.0,0.00016696,2]
[381772781,1756342232443,-257.87392037,0.00016696,2]
[381772793,1756342237872,-142.12607963,0.00016696,2]
[381772794,1756342237882,-400.0,0.00016696,2]
[381772795,1756342237892,-400.0,0.00016696,2]
[381772796,1756342237902,-400.0,0.00016696,2]
[381772797,1756342237911,-87.237855,0.00016696,2]
[381772798,1756342238142,-312.762145,0.00016696,2]
[381772799,1756342238155,-400.0,0.00016696,2]
[381772800,1756342238164,-400.0,0.00016696,2]
[381772801,1756342238174,-400.0,0.00016696,2]
[381772802,1756342238184,-400.0,0.00016696,2]
[381772803,1756342238193,-400.0,0.00016696,2]
[381772804,1756342238202,-400.0,0.00016696,2]
[381772806,1756342238213,-400.0,0.00016696,2]
[381772808,1756342238222,-400.0,0.00016696,2]
[381772811,1756342238232,-382.38,0.00016696,2]
[381772812,1756342238241,-400.0,0.00016696,2]
[381772814,1756342238250,-400.0,0.00016696,2]
[381772816,1756342238259,-400.0,0.00016696,2]
[381772817,1756342238269,-400.0,0.00016696,2]
[381772818,1756342238278,-252.24596978,0.00016696,2]
[381772819,1756342238294,-147.75403022,0.00016696,2]
[381772820,1756342238304,-400.0,0.00016696,2]
[381772822,1756342238314,-400.0,0.00016696,2]
[381772824,1756342238323,-400.0,0.00016696,2]
[381772826,1756342238332,-400.0,0.00016696,2]
[381772828,1756342238342,-168.40463476,0.00016696,2]
[381772831,1756342238354,-231.59536524,0.00016696,2]
[381772833,1756342238363,-125.84018058,0.00016696,2]
[381772836,1756342238383,-274.15981942,0.00016696,2]
[381772838,1756342238392,-400.0,0.00016696,2]
[381772840,1756342238401,-400.0,0.00016696,2]
[381772842,1756342238411,-400.0,0.00016696,2]
[381772844,1756342238423,-400.0,0.00016696,2]
[381772846,1756342238432,-400.0,0.00016696,2]
[381772848,1756342238441,-400.0,0.00016696,2]
[381772850,1756342238450,-701.07,0.00016696,2]
[381772852,1756342238459,-400.0,0.00016696,2]
[381772854,1756342238468,-400.0,0.00016696,2]
[381772856,1756342238477,-400.0,0.00016696,2]
[381772858,1756342238486,-400.0,0.00016696,2]
[381772860,1756342238496,-400.0,0.00016696,2]
[381772862,1756342238505,-400.0,0.00016696,2]
[381772864,1756342238515,-400.0,0.00016696,2]
[381772866,1756342238524,-400.0,0.00016696,2]
[381772868,1756342238533,-446.03,0.00016696,2]
[381772870,1756342238542,-400.0,0.00016696,2]
[381772872,1756342238551,-400.0,0.00016696,2]
[381772874,1756342238560,-400.0,0.00016696,2]
[381772876,1756342238569,-400.0,0.00016696,2]
[381772877,1756342238578,-400.0,0.00016696,2]
[381772879,1756342238589,-400.0,0.00016696,2]
[381772881,1756342238599,-400.0,0.00016696,2]
[381772883,1756342238608,-400.0,0.00016696,2]
[381772885,1756342238617,-290.45593155,0.00016696,2]
[381772887,1756342238627,-400.0,0.00016696,2]
[381772889,1756342238637,-400.0,0.00016696,2]
[381772891,1756342238646,-400.0,0.00016696,2]
[381772893,1756342238655,-400.0,0.00016696,2]
[381772895,1756342238666,-400.0,0.00016696,2]
[381772897,1756342238675,-554.09,0.00016696,2]
[381772900,1756342238685,-400.0,0.00016696,2]
[381772901,1756342238694,-400.0,0.00016696,2]
[381772903,1756342238703,-325.30497924,0.00016696,2]
[381772905,1756342238713,-213.3,0.00016696,2]
[381772907,1756342238722,-400.0,0.00016696,2]
[381772910,1756342238732,-400.0,0.00016696,2]
[381772911,1756342238741,-500.0,0.00016696,2]
[381772913,1756342238751,-400.0,0.00016696,2]
[381772915,1756342238760,-400.0,0.00016696,2]
[381772918,1756342238770,-178.41336691,0.00016696,2]
[381772962,1756342239168,-221.58663309,0.00016696,2]
[381772964,1756342239178,-432.11,0.00016696,2]
[381772966,1756342239187,-400.0,0.00016696,2]
[381772967,1756342239196,-185.54141844,0.00016696,2]
[381772970,1756342239236,-214.45858156,0.00016696,2]
[381772972,1756342239246,-400.0,0.00016696,2]
[381772974,1756342239255,-2284.73,0.00016696,2]
[381772976,1756342239264,-400.0,0.00016696,2]
[381772978,1756342239274,-400.0,0.00016696,2]
[381772980,1756342239283,-400.0,0.00016696,2]
[381772982,1756342239292,-400.0,0.00016696,2]
[381772984,1756342239302,-400.0,0.00016696,2]
[381772986,1756342239311,-400.0,0.00016696,2]
[381772988,1756342239323,-249.95146025,0.00016696,2]
[381772991,1756342239338,-150.04853975,0.00016696,2]
[381772992,1756342239348,-400.0,0.00016696,2]
[381772994,1756342239358,-449.95146025,0.00016696,2]
[381773050,1756342239880,-550.04853975,0.00016696,2]
[381773052,1756342239889,-391.63146025,0.00016696,2]
[381773054,1756342239901,-8.36853975,0.00016696,2]
[381773056,1756342239911,-400.0,0.00016696,2]
[381773058,1756342239920,-400.0,0.00016696,2]
[381773060,1756342239930,-405.63,0.00016696,2]
[381773062,1756342239941,-500.0,0.00016696,2]
[381773065,1756342239951,-400.0,0.00016696,2]
[381773066,1756342239960,-400.0,0.00016696,2]
[381773068,1756342239969,-400.0,0.00016696,2]